Cogmind - Beta 17.1 @@@ ROGUE MODE // 2026.09.17 @ 14:51:48 Player: MOPO3 Result: Destroyed by Y-54 Guardian with Gatling Laser Performance ------------- Evolutions (0) 0 Regions Visited (3) 600 Robots Destroyed (20) 100 Value Destroyed (345) 345 Prototype IDs (2) 40 Alien Tech Used (0) 0 Bonus (0) 0 TOTAL SCORE: 1085 Bonus ------- None Cogmind --------- Core Integrity 0/250 Matter 300/300 Energy 100/100 System Corruption 6% Temperature Cool (12) Movement Rolling (100) Location -7/Recycling Parts ------- > --- POWER (1) -------- (None) > --- PROPULSION (2) --- Compact Wheel Compact Wheel > --- UTILITY (2) ------ Large Storage Unit EM Disruption Field > --- WEAPON (2) ------- Subdweller Beam Cannon Spear > --- INVENTORY (15) --- Spiked Treads Small Storage Unit Improved Sensor Array Lightning Gun Arc Projector Light Assault Rifle Subdweller Machine Gun Flamer Hammer Scrap Shield Fragment (47) Scrap Shield Fragment (46) Peak State ------------ > --- POWER ------------ Light Ion Engine > --- PROPULSION ------- Subdweller Monowheel Subdweller Monowheel > --- UTILITY ---------- Large Storage Unit EM Disruption Field > --- WEAPON ----------- Subdweller Beam Cannon Spear > --- INVENTORY -------- Spiked Treads Lightning Gun Arc Projector Light Assault Rifle Subdweller Machine Gun Flamer Hammer Scrap Shield Fragment Scrap Shield Fragment [Rating: 18] Favorites ----------- Power Light Ion Engine Engine Light Ion Engine Propulsion Wheel Treads Spiked Treads Wheel Wheel Utility Small Storage Unit Device EM Disruption Field Storage Small Storage Unit Weapon Subdweller Beam Cannon Energy Gun EM Pulse Gun Energy Cannon Subdweller Beam Cannon Ballistic Gun Subdweller Machine Gun Launcher Grenade Launcher Special Weapon Flamer Impact Weapon Hammer Piercing Weapon Spear Build | -11 -10 -10 -7 ------- Run | Yrd Mat Sub Rec Slots Evolved . | . . . . Power . | . . . . Propulsion . | . . . . Utility . | . . . . Weapon . | . . . . Parts Attached 24 | 7 1 11 5 Power 2 | 1 . 1 . Engine 2 | 1 . 1 . Core . | . . . . Reactor . | . . . . Propulsion 7 | 2 . 3 2 Treads 1 | . . 1 . Leg . | . . . . Wheel 6 | 2 . 2 2 Hover . | . . . . Flight . | . . . . Utility 4 | 2 . . 2 Device 2 | 1 . . 1 Storage 2 | 1 . . 1 Processor . | . . . . Hackware . | . . . . Protection . | . . . . Artifact . | . . . . Weapon 11 | 2 1 7 1 Energy Gun 2 | 2 . . . Energy Cannon 1 | . . 1 . Ballistic Gun 4 | . . 4 . Ballistic Cannon . | . . . . Launcher 1 | . 1 . . Special Weapon 1 | . . 1 . Impact Weapon 1 | . . 1 . Slashing Weapon . | . . . . Piercing Weapon 1 | . . . 1 Special Melee Weapon . | . . . . Unidentified Prototypes . | . . . . Parts Lost 11 | . . 10 1 Power 2 | . . 1 1 Propulsion 2 | . . 2 . Utility 1 | . . 1 . Weapon 6 | . . 6 . Highest Loss Streak 5 | . . 5 1 To Critical Strikes 1 | . . 1 . Average Backups 4 | 1 4 3 7 Power . | . 1 . . Propulsion . | . . . 1 Utility . | . . . . Weapon 3 | . 3 2 5 Tool/Special . | . . . . Unused Backups 6 | . 1 . 5 Power . | . . . . Propulsion . | . . . . Utility 2 | . . . 2 Weapon 4 | . 1 . 3 Tool/Special . | . . . . Average Slot Usage (%) 88 | . 100 81 99 Engine 12 | . 14 12 14 Treads 4 | . . 6 . Wheel 21 | . 28 17 28 Device 6 | . 14 2 13 Storage 14 | . 14 14 14 Energy Gun 3 | . 20 2 . Energy Cannon 6 | . . 2 14 Ballistic Gun 10 | . . 13 6 Special Weapon 3 | . . 5 . Impact Weapon 2 | . . 3 . Piercing Weapon 2 | . . . 7 Peak Build Rating 18 | 7 7 10 18 Average Rating 9 | 5 7 8 15 On Entrance 6 | . 7 7 10 Avg Prop Armor Cover (%) 13 | . . 13 . Naked Turns . | . . . . Heaviest Build 34 | 13 14 20 34 Greatest Support 40 | 20 20 40 40 Greatest Overweight (x) 1 | . . 1 1 Average Overweight (x) . | . . . . Largest Inventory Capacity 15 | 8 8 8 15 Average Capacity 9 | 7 8 8 13 Most Carried 11 | 3 6 6 11 Average Carried 5 | 1 4 4 9 Final Capacity 15 | 8 8 8 15 Final Carried 11 | 3 6 6 11 Class Distribution -------------------- 100% | Mutant Dominant Class ---------------- Mutant | -10/Materials Mutant | -10/Subcaves Mutant | -7/Recycling Resources | -11 -10 -10 -7 ----------- Run | Yrd Mat Sub Rec Matter Collected 720 | 270 20 282 148 Remotely . | . . . . Salvage Created 680 | 140 30 293 217 Parts 41 | 9 7 16 9 Haulers Intercepted . | . . . . Recyclers Shooed 1 | 1 . . . Parts Field Recycled . | . . . . Retrieved Matter . | . . . . Parts Self-Destructed 2 | . . 2 . Prevented . | . . . . Parts Restored . | . . . . Kills | -11 -10 -10 -7 ------- Run | Yrd Mat Sub Rec Combat Hostiles Destroyed 12 | . 3 9 . Guns 7 | . 1 6 . Cannons 1 | . . 1 . AOE 4 | . 2 2 . Classes Destroyed 5 | 2 1 2 . Tunneler 3 | 3 . . . Recycler 4 | 1 . . 3 Turret 1 | . . 1 . Swarmer 7 | . 3 4 . Subdweller 5 | . . 5 . Best Kill Streak 4 | 4 3 4 2 Combat Bots Only 4 | . 3 4 . Max Kills in Single Turn 2 | 1 1 2 1 Gunslinging . | . . . . Exploded 2 | . 1 2 . Melee . | . . . . Uniques/NPCs Destroyed . | . . . . Combat | -11 -10 -10 -7 -------- Run | Yrd Mat Sub Rec Hostile Shots Fired 94 | . 19 72 3 Missed 28 | . 4 23 1 Hits 66 | . 15 49 2 Projectile 66 | . 15 49 2 AOE 2 | . . 2 . Critical Strikes 3 | . 1 2 . Damage Taken 1080 | . 114 944 22 Core 252 | . 10 232 10 Absorbed by Shields . | . . . . Core Remaining (%) 100 | 100 . . . Volleys Fired 51 | 6 6 39 . Largest 2 | 2 2 2 . Hottest 130 | 80 80 130 . Shots Fired 84 | 12 8 64 . Gun 64 | 12 6 46 . Cannon 9 | . . 9 . Launcher 9 | . 2 7 . Special 2 | . . 2 . Kinetic 34 | . . 34 . Thermal 11 | . . 11 . Explosive 9 | . 2 7 . Electromagnetic 30 | 12 6 12 . Robot Hit Streak 8 | 5 4 8 . Robot Miss Streak 2 | 1 2 2 . Penetration Max . | . . . . Secondary Targets . | . . . . Shots Hit Robots 58 | 7 5 43 3 Core Hits 35 | 4 4 25 2 Critical Kills . | . . . . Critical Parts Destroyed . | . . . . Critical Strikes 2 | . 1 1 . Corrupt 2 | . 1 1 . Melee Attacks 18 | . . 15 3 Impact 15 | . . 15 . Slashing . | . . . . Piercing 3 | . . . 3 Sneak Attacks 4 | . . 1 3 Combat Hostiles . | . . . . Follow-up Attacks . | . . . . Damage Inflicted 1262 | 150 210 698 204 Guns 529 | 108 43 378 . Cannons 146 | . . 146 . Explosions 372 | 42 167 163 . Melee 204 | . . . 204 Ramming . | . . . . Kinetic 271 | . . 271 . Thermal 199 | 42 . 157 . Explosive 330 | . 167 163 . Electromagnetic 258 | 108 43 107 . Impact . | . . . . Slashing . | . . . . Piercing 204 | . . . 204 Highest Corruption 6 | . 5 5 6 Average Corruption 5 | . 3 5 5 Corruption Purged . | . . . . Corruption Blocked . | . . . . Effects 37 | . 2 21 14 Message Errors 10 | . . 5 5 Matter Fused 8 | . . 4 4 Heat Flow Errors 3 | . 1 2 . Energy Discharges 7 | . 1 5 1 Parts Fused 2 | . . 2 . Data Loss (minor) 3 | . . 1 2 Data Loss (major) 3 | . . 2 1 Alerts 1 | . . . 1 Overload Shots . | . . . . Overflow Damage 44 | . . 10 34 Projectiles 10 | . . 10 . Explosions . | . . . . Melee 34 | . . . 34 Knockbacks . | . . . . Impact . | . . . . Kinetic . | . . . . Secondary . | . . . . Self-Inflicted Damage 89 | . . 89 . Shots 3 | . . 3 . Rammed . | . . . . Targets Rammed . | . . . . Kicked . | . . . . Crushed . | . . . . Highest Temperature 214 | 72 149 214 . Average Temperature 56 | 32 77 58 . Received Heat Transfer 114 | . . 102 12 Siege Activations . | . . . . Martial Activations . | . . . . Shielding Activations . | . . . . Robots Disrupted . | . . . . Combat Hostiles . | . . . . Robots Corrupted . | . . . . Combat Hostiles . | . . . . Parts Fried . | . . . . Impact Corruptions . | . . . . Robots Melted . | . . . . Combat Hostiles . | . . . . Parts Melted 2 | . . 2 . Heat Transferred 315 | 50 . 265 . Parts Sabotaged . | . . . . Parts Stolen . | . . . . Parts Stripped . | . . . . Power Chain Reactions 1 | 1 . . . Alert | -11 -10 -10 -7 ------- Run | Yrd Mat Sub Rec Maximum Alert Level . | . . . . Low Security (%) 100 | 100 100 . 100 Level 1 . | . . . . Level 2 . | . . . . Level 3 . | . . . . Level 4 . | . . . . Level 5 . | . . . . High Security . | . . . . Max Security . | . . . . Peak Influence 101 | 15 85 . 101 Initial 21 | . 6 . 21 Average 23 | 3 44 . 20 Influence Increases 663 | 20 95 355 193 Destroy 0b10 Robot/C 160 | . 60 100 . Destroy 0b10 Robot/NC 35 | 20 . . 15 Destroy Leader 10 | . 10 . . Successful Hack 38 | . 10 . 28 Select Force Hacks 150 | . . . 150 Destroy Structure 15 | . 15 . . Lose Combat Pursuer 255 | . . 255 . Influence Decreases 580 | 10 40 376 154 Entered New Map 59 | . 4 32 23 Time Decay 431 | 10 36 264 121 Lost Part 90 | . . 80 10 Squads Dispatched . | . . . . Investigation . | . . . . Extermination . | . . . . Reinforcement . | . . . . Assault . | . . . . Garrison . | . . . . Intercept . | . . . . Searches Triggered . | . . . . Construction Impeded . | . . . . Haulers Reinforced . | . . . . Active Scanning Responses . | . . . . Cargo Convoy Interrupts . | . . . . Stealth | -11 -10 -10 -7 --------- Run | Yrd Mat Sub Rec Distress Signals . | . . . . Communications Jammed . | . . . . Distress Signals . | . . . . Times Spotted 21 | . 4 16 1 Peak Tracking Total 4 | . 4 4 . Tactical Retreats 5 | . . 5 . Traps | -11 -10 -10 -7 ------- Run | Yrd Mat Sub Rec Traps Triggered 6 | . 3 3 . Indirectly . | . . . . Trap Hack Attempts . | . . . . Triggered . | . . . . Disarmed . | . . . . Reprogrammed . | . . . . Reused . | . . . . Traps Extracted . | . . . . Installed . | . . . . Triggered . | . . . . Machines | -11 -10 -10 -7 ---------- Run | Yrd Mat Sub Rec Machines Disabled 4 | . . 4 . Max in Single Turn 2 | . . 2 . Machines Repaired . | . . . . Machines Dismantled . | . . . . Machines Sabotaged . | . . . . Overloaded Fab Kills . | . . . . Hacking | -11 -10 -10 -7 --------- Run | Yrd Mat Sub Rec Machines Accessed 12 | . 2 . 10 Terminals 7 | . 2 . 5 Fabricators . | . . . . Repair Stations . | . . . . Recycling Units 5 | . . . 5 Scanalyzers . | . . . . Garrison Access . | . . . . Total Hacks 41 | . 6 . 35 Successful 17 | . 2 . 15 Failed 24 | . 4 . 20 Catastrophic 3 | . 1 . 2 Database Lockouts . | . . . . Manual 29 | . 5 . 24 Terminals 23 | . 6 . 17 Fabricators . | . . . . Repair Stations . | . . . . Recycling Units 18 | . . . 18 Scanalyzers . | . . . . Garrison Access . | . . . . Terminal Hacks 1 | . 1 . . Prototype ID Bank 1 | . 1 . . Fabricator Hacks . | . . . . Repair Station Hacks . | . . . . Recycling Unit Hacks 6 | . . . 6 Retrieve Matter 1 | . . . 1 Retrieve Components 5 | . . . 5 Scanalyzer . | . . . . Garrison Access Hacks . | . . . . Unauthorized Hacks 10 | . 1 . 9 Terminals 5 | . 1 . 4 Botnet 5 | . 1 . 4 Fabricators . | . . . . Repair Stations . | . . . . Recycling Units 5 | . . . 5 Tunnel 5 | . . . 5 Scanalyzers . | . . . . Garrison Access . | . . . . Data Cores Recovered . | . . . . Used . | . . . . Hacking Detections 10 | . 2 . 8 Full Trace Events 5 | . . . 5 Feedback Events 1 | . . . 1 Corruption 1 | . . . 1 Feedback Blocked . | . . . . Robot Schematics Acquired . | . . . . Robots Built . | . . . . Authchips . | . . . . Time . | . . . . Total Robot Build Rating . | . . . . Part Schematics Acquired . | . . . . Parts Built . | . . . . Authchips . | . . . . Time . | . . . . Total Part Build Rating . | . . . . Part Studies Acquired . | . . . . Parts Repaired . | . . . . Time . | . . . . Parts Recycled . | . . . . Recycled Matter . | . . . . Retrieved Matter . | . . . . Retrieved Components 8 | . . . 8 Parts Scanalyzed . | . . . . Part Schematics Acquired . | . . . . Parts Damaged . | . . . . Bothacking | -11 -10 -10 -7 ------------ Run | Yrd Mat Sub Rec Used RIF Installer . | . . . . Robots Hacked . | . . . . Non-combat . | . . . . Combat . | . . . . Robot Hacks Applied . | . . . . Relay Couplers Released . | . . . . Fabnet Peak Effective % . | . . . . Robots Rewired . | . . . . Allies Hacked . | . . . . Hacks Repelled . | . . . . Allies | -11 -10 -10 -7 -------- Run | Yrd Mat Sub Rec Total Allies . | . . . . Largest Group . | . . . . Highest-Rated Group . | . . . . Highest-Rated Ally . | . . . . Total Orders . | . . . . Ally Attacks . | . . . . Total Damage . | . . . . Kills . | . . . . Allies Corrupted . | . . . . Allies Melted . | . . . . Intel | -11 -10 -10 -7 ------- Run | Yrd Mat Sub Rec Active Infowar (turns) 260 | 11 114 135 . Seismic 260 | 11 114 135 . Robot Analysis Total . | . . . . Derelict Logs Recovered 1 | . . 1 . Drone Launches . | . . . . Drone Recoveries . | . . . . Exploration | -11 -10 -10 -7 ------------- Run | Yrd Mat Sub Rec Turns Passed 1556 | 76 114 910 456 Spaces Moved 1297 | 57 114 760 366 Core 3 | 3 . . . Treads . | . . . . Legs . | . . . . Wheels 1294 | 54 114 760 366 Hover . | . . . . Flight . | . . . . Fastest Speed 50 | 50 80 80 105 Average Speed 98 | 78 80 95 112 Slowest Speed 115 | 80 80 110 115 Overloaded Moves . | . . . . Propulsion Burnouts . | . . . . Robots Hopped . | . . . . Potential Cave-ins . | . . . . Cave-ins Triggered . | . . . . Exploration Rate (%) 33 | 4 18 37 75 Regions Visited 3 Branch Regions 2 Pre-discovered Areas 5 | . . . 5 Known Exits Taken . | . . . . Unknown Exits Taken 3 | 1 1 1 . Scrap Searched . | . . . . Spaces Dug . | . . . . Terrain Destroyed 43 | 1 13 29 . Melee . | . . . . Projectile 1 | . . 1 . AOE 42 | 1 13 28 . Terrain Rammed . | . . . . Walls Destroyed . | . . . . Machines Disabled . | . . . . Actions | -11 -10 -10 -7 --------- Run | Yrd Mat Sub Rec Total 1446 | 72 128 841 405 Wait 29 | . 3 1 25 Move 1294 | 56 113 759 366 Hop . | . . . . Pick Up 17 | 3 4 5 5 Fast Attach 11 | 7 . 3 1 Attach 6 | . . 6 . Detach . | . . . . Swap 18 | . 1 13 4 Drop 2 | . 1 . 1 Fire 51 | 6 6 39 . Melee 18 | . . 15 3 Ram . | . . . . Kick . | . . . . Crush . | . . . . Escape Stasis . | . . . . Rewire . | . . . . Trap . | . . . . Miscellaneous . | . . . . Route ------- -11/Scrapyard -10/Materials -10/Subcaves (discovered 2 exits: [*Mat] / *Rec) -7/Recycling (discovered 1 exit: [*Fac]) History --------- Turn | Location | Event 27 | -11/Scrapyard | Discovered new exit (range 16) 77 | -11/Scrapyard | Entered Materials 185 | -10/Materials | Discovered new exit (range 8) 191 | -10/Materials | Entered Subcaves 192 | -10/Subcaves | Approached by a straggling Scientist 217 | -10/Subcaves | Discovered new exit (range 12) 264 | -10/Subcaves | Lost 5 parts (1p1n3w) 312 | -10/Subcaves | Build established: Mutant 325 | -10/Subcaves | Core integrity fell below 50% 340 | -10/Subcaves | A swath of the cavern ceiling suddenly collapsed 341 | -10/Subcaves | Shifting Twisted Machinery released Spk. Treads 383 | -10/Subcaves | Lost 3 parts (1u2w) 404 | -10/Subcaves | Discovered new exit (range 10) 703 | -10/Subcaves | Shifting Twisted Machinery released Sub. Beam Cannon 942 | -10/Subcaves | Core integrity fell below 20% 1101 | -10/Subcaves | Entered Recycling 1273 | -7/Recycling | Scanned before Scraplab entrance 1497 | -7/Recycling | Discovered new exit (range 15) 1557 | -7/Recycling | Destroyed by Y-54 Guardian with Gatling Laser Last Messages --------------- >>Force(Tunnel) DISCOVERED[-2/Quarantine] 01497_ EXIT=FOUND 01499_ Connecting with Recycling Unit... >>Force(Tunnel) DISCOVERED[-3/Testing] 01504_ Acquired 15 matter. 01525_ UF7EIKSILBFLLYHWT/PS 01537_ Connecting with Recycling Unit... >>Force(Tunnel) DISCOVERED[-3/Research] 01538_ Sneak attack on R-06 Scavenger. 01538_ Destroyed Lgt. Ion Engine. 01538_ R-06 Scavenger destroyed. 01542_ BA&=FPOZI HZ#6HDZPR8B7XBL0R 01542_ R-06 Scavenger collects Com. Wheel. 01546_ R-06 Scavenger collects Tractor Beam. 01549_ R-06 Scavenger collects Sml. Storage Unit. 01557_ Y-54 Guardian springs to life. 01557_ Lgt. Ion Engine destroyed. Map ----- +----------------------------------------------------+ | ????# #??????????????????????????# | | ????# ###????????????????????????# | | ????# % #????????????????????????# % | | ????# %%#????##??????????????????# | | ????# %%##### #####????????#?????#######+ | | ????# #### #??????# ! ?????+ | | ????# #??# #??????# ?????# | | ??### #??# #??????# # | | ??#"" #??# #??????#! [ + | | ??#"Y #??# #??????# ###### | | ??#"" #??# #??????# ?#????# | | ??### #??# #??????? | ?!#????# | | ????# #??# #?#####? / ? #????# | | ???## ##?# #?#"""#?? ? #?#### | | ???# #####+########"Y"########+#### | | ???# *=!! T" | | ???# ! " | | ???# | | ???# #########[[[###"Y"############ | | ???## ##???????# [[#?#"""#??????????##### | | ????# #????????#####?#####??????????????? | | ????# #???#####?????????????????????????? | | ????# #???#[ [#???##???####?????????????? | | ??### #####[[[####Y## ###???????????? | | ??#"" u ????????? | | ??#"Y % r @ ????????? | | ??#"" u ????????? | | ??### ############ ## ###???????????? | | ????# #??????????? #???####?????????????? | | ????# #????????????#????????????????????? | | ????# #?????????????????????????????????? | | ????# #?????????????????????????????????? | | ????# #?????????????????????????????????? | | ????# #?????????????????????????????????? | | ????# #?????????????????????????????????? | | ????# #?????????????????????????????????? | | ????# ?????????????????????????????????? | | ????# ?????????????????????????????????? | | ????# ?????????????????????????????????? | | ????#####?????????????????????????????????? | | ??????????????????????????????????????????? | | ??????????????????????????????????????????? | | ??????????????????????????????????????????? | | ??????????????????????????????????????????? | | ??????????????????????????????????????????? | | ??????????????????????????????????????????? | | ??????????????????????????????????????????? | | ??????????????????????????????????????????? | | ??????????????????????????????????????????? | | ??????????????????????????????????????????? | +----------------------------------------------------+ Best States ------------- Heat Dissipation 25 Energy Generation 10 Energy Capacity 125 Matter Stores 300 Matter Capacity 300 Sight Range 16 Terrain Scan Density 10 Evasion (%) 44 Item Schematics ----------------- None Robot Schematics ------------------ None Fabricated ------------ Nothing Repaired ---------- Nothing Studied --------- None Alien Tech Used ----------------- None Achievements -------------- None Challenges ------------ None Game ------ Seed UtilityDoorProcsplitter Manual? 0 Play Time 00:16:04 Cumulative 27.5 hours Start 2026.09.17 @ 13:58:41 End 2026.09.17 @ 14:51:48 Sessions 1 Manual Loads 0 Difficulty Rogue Special Mode None Game No. 31 Rogue 31 Adventurer 0 Explorer 0 Win Type - Total 1 Types 1/0/0/0/0/0/0/0/0/0 Lore% 24 Gallery% 28 Achievement% 27 Wizard Run 0 Options --------- Layout 0 ASCII 0 Keyboard 0 Movement Numpad Keybinds 0 Fullscreen 1 Font 18/Terminus Map View 76x50 Zoom Use 0% Tactical HUD 1 Map Filters NONE Filters NONE Steam 1 RUN: 4da0a74e-5679-4d64-a3f0-16c6b907362f